bitfinex-derivatives/quotes_BNBF0:USTF0_20251002
["timestamp","ask_amount","ask_price","bid_price","bid_amount"]
[1759369072995,0.54645193,1027.8,1026.3,1.47114822]
[1759369073201,0.54645193,1027.7,1026.3,1.47114822]
[1759369073399,0.54645193,1027.6,1026.3,1.47114822]
[1759369073599,0.54645193,1027.5,1026.3,1.47114822]
[1759369073906,1.04276803,1028.3,1026.3,1.47114822]
[1759369074101,0.54648636,1028.2,1026.3,1.47114822]
[1759369074303,0.54648636,1028.1,1026.3,1.47114822]
[1759369074496,0.54648636,1028.0,1026.3,1.47114822]
[1759369074796,0.54648636,1027.9,1026.3,1.47114822]
[1759369075000,0.54648636,1027.8,1026.4,1.30174951]
[1759369075202,0.54648636,1027.7,1026.5,1.30174951]
[1759369075498,0.54648636,1027.6,1026.5,1.30174951]
[1759369075711,0.54648636,1027.5,1026.5,1.30174951]
[1759369076002,0.87340148,1028.1,1026.5,1.30174951]
[1759369076197,0.54652173,1028.0,1026.5,1.30174951]
[1759369076402,0.87340148,1028.1,1026.5,1.30174951]
[1759369076403,0.54652173,1027.9,1026.5,1.30174951]
[1759369076604,0.54652173,1027.8,1026.5,1.30174951]
[1759369076801,0.54652173,1027.7,1026.5,1.30174951]
[1759369077005,0.54652173,1027.6,1026.5,1.30174951]
[1759369077300,0.87340148,1028.1,1026.5,1.30174951]
[1759369077301,0.54652173,1027.5,1026.5,1.30174951]
[1759369077501,0.87340148,1028.1,1026.5,1.30174951]
[1759369077703,0.54655334,1028.0,1026.5,1.30174951]
[1759369077903,0.54655334,1027.9,1026.4,1.30174951]
[1759369078102,0.54655334,1027.8,1026.4,1.30174951]
[1759369078302,0.54655334,1027.7,1026.4,1.30174951]
[1759369078502,0.54655334,1027.6,1026.5,1.30174951]
[1759369078802,0.54655334,1027.5,1026.4,1.30174951]
[1759369079000,0.87340148,1028.2,1026.4,1.30174951]
[1759369079303,0.54657392,1028.1,1026.4,1.30174951]
[1759369079500,0.54657392,1028.0,1026.4,1.30174951]
[1759369079705,0.54657392,1027.9,1026.4,1.30174951]
[1759369079905,0.54657392,1027.8,1026.4,1.30174951]
[1759369080105,0.54657392,1027.7,1026.4,1.30174951]
[1759369080401,0.54657392,1027.6,1026.4,1.30174951]
[1759369080605,0.54657392,1027.5,1026.4,1.30174951]
[1759369080802,0.87340148,1028.2,1026.4,1.30174951]
[1759369081006,0.5465957,1028.1,1026.4,1.30174951]
[1759369081204,0.5465957,1028.0,1026.4,1.30174951]
[1759369081411,0.5465957,1027.9,1026.4,1.30174951]
[1759369081606,0.5465957,1027.8,1026.4,1.30174951]
[1759369081808,0.5465957,1027.7,1026.4,1.30174951]
[1759369082007,0.5465957,1027.6,1026.4,1.30174951]
[1759369082308,0.5465957,1027.5,1026.4,1.30174951]
[1759369082504,0.87340148,1028.2,1026.4,1.30174951]
[1759369082708,0.5466424,1028.1,1026.4,1.30174951]
[1759369082906,0.5466424,1028.0,1026.4,1.30174951]
[1759369083107,0.5466424,1027.9,1026.4,1.30174951]
[1759369083307,0.5466424,1027.8,1026.4,1.30174951]
[1759369083607,0.5466424,1027.7,1026.4,1.30174951]
[1759369083909,0.5466424,1027.6,1026.4,1.30174951]
[1759369084106,0.5466424,1027.5,1026.4,1.30174951]
[1759369084310,0.87340148,1028.1,1026.4,1.30174951]
[1759369084510,0.54669473,1028.0,1026.4,1.30174951]
[1759369084707,0.54669473,1027.9,1026.4,1.30174951]
[1759369085008,0.54669473,1027.8,1026.4,1.30174951]
[1759369085206,0.54669473,1027.7,1026.4,1.30174951]
[1759369085410,0.54669473,1027.6,1026.4,1.30174951]
[1759369085607,0.54669473,1027.5,1026.4,1.30174951]
[1759369085811,0.87340148,1028.2,1026.4,1.30174951]
[1759369086007,0.54673286,1028.1,1026.4,1.30174951]
[1759369086210,0.54673286,1028.0,1026.4,1.30174951]
[1759369086407,0.54673286,1027.9,1026.4,1.30174951]
[1759369086708,0.54673286,1027.8,1026.4,1.30174951]
[1759369086908,0.54673286,1027.7,1026.4,1.30174951]
[1759369087106,0.54673286,1027.6,1026.4,1.30174951]
[1759369087410,0.54673286,1027.5,1026.3,1.47114822]
[1759369087709,0.87340148,1028.2,1026.3,1.47114822]
[1759369087909,0.54679334,1028.1,1026.3,1.47114822]
[1759369088108,0.54679334,1028.0,1026.3,1.47114822]
[1759369088308,1.04276803,1028.3,1026.3,1.47114822]
[1759369088309,0.54679334,1027.9,1026.3,1.47114822]
[1759369088512,0.54679334,1027.8,1026.3,1.47114822]
[1759369088812,0.54679334,1027.7,1026.3,1.47114822]
[1759369089111,0.54679334,1027.6,1026.3,1.47114822]
[1759369089311,0.54679334,1027.5,1026.3,1.47114822]
[1759369089509,0.87340148,1028.2,1026.3,1.47114822]
[1759369089713,0.54686509,1028.1,1026.3,1.47114822]
[1759369090012,0.54686509,1028.0,1026.3,1.47114822]
[1759369090213,0.54686509,1027.9,1026.3,1.47114822]
[1759369090413,0.54686509,1027.8,1026.3,1.47114822]
[1759369090712,0.54686509,1027.7,1026.3,1.47114822]
[1759369090914,0.54686509,1027.6,1026.3,1.47114822]
[1759369091112,0.87340148,1028.2,1026.3,1.47114822]
[1759369091113,0.54686509,1027.5,1026.3,1.47114822]
[1759369091310,0.87340148,1028.2,1026.3,1.47114822]
[1759369091510,0.54692047,1028.1,1026.3,1.47114822]
[1759369091709,0.54692047,1028.0,1026.3,1.47114822]
[1759369091914,0.54692047,1027.9,1026.3,1.47114822]
[1759369092210,0.54692047,1027.8,1026.3,1.47114822]
[1759369092414,0.54692047,1027.7,1026.3,1.47114822]
[1759369092611,0.54692047,1027.6,1026.3,1.47114822]
[1759369092910,0.87340148,1028.2,1026.3,1.47114822]
[1759369092911,0.54692047,1027.5,1026.6,1.30174951]
[1759369093218,0.87340148,1028.4,1026.6,1.30174951]
[1759369093434,0.54679172,1028.3,1026.6,1.30174951]
[1759369093715,0.54679172,1028.2,1026.6,1.30174951]
[1759369093916,0.54679172,1028.1,1026.6,1.30174951]
[1759369094112,0.54679172,1028.0,1026.6,1.30174951]
[1759369094415,0.54679172,1027.9,1026.7,1.30174951]
[1759369094714,0.54679172,1027.8,1026.7,1.30174951]
[1759369095012,0.87340148,1028.4,1026.9,1.30174951]
[1759369095210,0.54666544,1028.3,1026.8,1.30174951]
[1759369095411,0.54666544,1028.2,1026.8,1.30174951]
[1759369095611,0.54666544,1028.1,1026.8,1.30174951]
[1759369095810,0.54666544,1028.0,1026.8,1.30174951]
[1759369096013,0.54666544,1027.9,1026.8,1.30174951]
[1759369096211,0.87340148,1028.4,1026.8,1.30174951]
[1759369096413,0.54634431,1028.3,1026.8,1.30174951]
[1759369096610,0.54634431,1028.2,1026.8,1.30174951]
[1759369096814,0.54634431,1028.1,1026.8,1.30174951]
[1759369097111,0.54634431,1028.0,1026.8,1.30174951]
[1759369097411,0.54634431,1027.9,1026.9,1.30174951]
[1759369097615,0.87340148,1028.4,1026.9,1.30174951]
[1759369097814,0.545233,1028.3,1026.9,1.30174951]
[1759369098012,0.545233,1028.2,1026.9,1.30174951]
[1759369098311,0.545233,1028.1,1026.9,1.30174951]
[1759369098514,0.545233,1028.0,1026.9,1.30174951]
[1759369098715,0.87340148,1028.4,1026.9,1.30174951]
[1759369098716,0.545233,1027.9,1026.9,1.30174951]
[1759369099010,0.87340148,1028.4,1026.9,1.30174951]
[1759369099211,0.54511176,1028.3,1026.9,1.30174951]
[1759369099515,0.54511176,1028.2,1026.9,1.30174951]
[1759369099716,0.54511176,1028.1,1026.9,1.30174951]
[1759369100016,0.54511176,1028.0,1026.9,1.30174951]
[1759369100214,0.87340148,1028.5,1026.9,1.30174951]
[1759369100415,0.54484496,1028.4,1026.9,1.30174951]
[1759369100613,0.54484496,1028.3,1026.9,1.30174951]
[1759369100914,0.54484496,1028.2,1026.9,1.30174951]
[1759369101111,0.54484496,1028.1,1026.9,1.30174951]
[1759369101312,0.54484496,1028.0,1026.9,1.30174951]
[1759369101512,0.87340148,1028.5,1026.9,1.30174951]
[1759369101716,0.54468657,1028.4,1027.0,1.30174951]
[1759369101917,0.54468657,1028.3,1027.0,1.30174951]
[1759369102118,0.54468657,1028.2,1027.0,1.30174951]
[1759369102315,0.54468657,1028.1,1027.0,1.30174951]
[1759369102519,0.87340148,1028.6,1027.0,1.30174951]
[1759369102728,0.54446124,1028.5,1027.0,1.30174951]
[1759369102919,0.54446124,1028.4,1027.0,1.30174951]
[1759369103215,0.54446124,1028.3,1027.0,1.30174951]
[1759369103415,0.54446124,1028.2,1027.0,1.30174951]
[1759369103619,0.54446124,1028.1,1027.0,1.30174951]
[1759369103817,0.87340148,1028.6,1027.0,1.30174951]
[1759369104119,0.5442878,1028.5,1027.0,1.30174951]
[1759369104323,0.5442878,1028.4,1026.9,1.30174951]
[1759369104524,0.5442878,1028.3,1026.9,1.30174951]
[1759369104717,0.5442878,1028.2,1026.9,1.30174951]
[1759369104916,0.5442878,1028.1,1026.9,1.30174951]
[1759369105221,0.16929034,1028.7,1026.8,1.30174951]
[1759369105522,0.54398077,1028.6,1026.8,1.30174951]
[1759369105840,0.54398077,1028.5,1026.8,1.30174951]
[1759369106016,0.16929034,1028.7,1026.8,1.30174951]
[1759369106017,0.54398077,1028.4,1026.8,1.30174951]
[1759369106218,0.54398077,1028.3,1026.8,1.30174951]
[1759369106417,0.54398077,1028.2,1026.8,1.30174951]
[1759369106615,0.16929034,1028.7,1026.8,1.30174951]
[1759369106818,0.54374544,1028.6,1026.8,1.30174951]
[1759369107018,0.54374544,1028.5,1026.8,1.30174951]
[1759369107221,0.54374544,1028.4,1026.8,1.30174951]
[1759369107421,0.54374544,1028.3,1026.8,1.30174951]
[1759369107621,0.16929034,1028.7,1026.8,1.30174951]
[1759369107819,0.54356159,1028.6,1026.8,1.30174951]
[1759369108120,0.54356159,1028.5,1026.8,1.30174951]
[1759369108423,0.54356159,1028.4,1026.8,1.30174951]
[1759369108624,0.54356159,1028.3,1026.8,1.30174951]
[1759369108949,0.87340148,1029.0,1026.8,1.30174951]
[1759369109130,0.71267235,1028.9,1026.8,1.30174951]
[1759369109322,0.54339806,1028.8,1026.7,1.30174951]
[1759369109519,0.54339806,1028.7,1026.7,1.30174951]
[1759369109724,0.54339806,1028.6,1026.7,1.30174951]
[1759369109924,0.54339806,1028.5,1026.7,1.30174951]
[1759369110122,0.54339806,1028.5,1026.3,0.16939871]
[1759369110123,0.54339806,1028.4,1026.8,1.30174951]
[1759369110322,0.54339806,1028.3,1026.7,1.30174951]
[1759369110526,0.16927429,1028.9,1026.7,1.30174951]
[1759369110727,0.54311123,1028.8,1026.7,1.30174951]
[1759369110923,0.54311123,1028.7,1026.7,1.30174951]
[1759369111127,0.54311123,1028.6,1026.7,1.30174951]
[1759369111332,0.54311123,1028.5,1026.7,1.30174951]
[1759369111528,0.54311123,1028.4,1026.7,1.30174951]
[1759369111725,0.54311123,1028.3,1026.7,1.30174951]
[1759369111929,0.16927429,1028.9,1026.7,1.30174951]
[1759369112230,0.54298634,1028.8,1026.7,1.30174951]
[1759369112529,0.54298634,1028.7,1026.7,1.30174951]
[1759369112728,0.54298634,1028.6,1026.7,1.30174951]
[1759369112928,0.54298634,1028.5,1026.6,1.30174951]
[1759369113141,0.54298634,1028.4,1026.6,1.30174951]
[1759369113330,0.54298634,1028.3,1026.6,1.30174951]
[1759369113529,0.54279728,1028.2,1026.6,1.30174951]
[1759369113729,0.16927429,1028.9,1026.6,1.30174951]
[1759369113932,0.54280374,1028.8,1026.6,1.30174951]
[1759369114130,0.54280374,1028.7,1026.6,1.30174951]
[1759369114431,0.54280374,1028.6,1026.6,1.30174951]
[1759369114632,0.54280374,1028.5,1026.6,1.30174951]
[1759369114827,0.54280374,1028.4,1026.6,1.30174951]
[1759369115026,0.54280374,1028.3,1026.6,1.30174951]
[1759369115229,1.04267577,1028.9,1026.7,1.30174951]
[1759369115529,1.41607362,1028.8,1026.8,1.30174951]
[1759369115729,0.54267214,1028.7,1026.8,1.30174951]
[1759369115933,0.54267214,1028.6,1026.8,1.30174951]
[1759369116130,0.54267214,1028.5,1026.8,1.30174951]
[1759369116431,0.54267214,1028.4,1026.8,1.30174951]
[1759369116631,0.54267214,1028.3,1026.8,1.30174951]
[1759369116831,0.87340148,1028.8,1026.8,1.30174951]
[1759369117127,0.54262403,1028.7,1026.8,1.30174951]
[1759369117331,0.54262403,1028.6,1026.8,1.30174951]
[1759369117529,0.54262403,1028.5,1026.8,1.30174951]
[1759369117731,0.54262403,1028.4,1026.8,1.30174951]
[1759369117929,0.54262403,1028.3,1026.8,1.30174951]
[1759369118132,0.87340148,1028.7,1026.8,1.30174951]
[1759369118133,0.87340148,1028.8,1026.8,1.30174951]
[1759369118334,1.41599782,1028.7,1026.8,1.30174951]
[1759369118533,0.54259634,1028.6,1026.8,1.30174951]
[1759369118737,0.54259634,1028.5,1026.8,1.30174951]
[1759369118937,0.54259634,1028.4,1026.8,1.30174951]
[1759369119139,0.54259634,1028.3,1026.8,1.30174951]
[1759369119433,0.87340148,1028.7,1026.8,1.30174951]
[1759369119636,0.5425606,1028.6,1026.8,1.30174951]
[1759369119834,0.5425606,1028.5,1026.8,1.30174951]
[1759369120037,0.5425606,1028.4,1026.8,1.30174951]
[1759369120238,0.5425606,1028.3,1026.8,1.30174951]
[1759369120438,0.87340148,1028.8,1026.8,1.30174951]
[1759369120635,0.54253965,1028.7,1026.8,1.30174951]
[1759369120834,0.54253965,1028.6,1026.8,1.30174951]
[1759369121037,0.54253965,1028.5,1026.8,1.30174951]
[1759369121235,0.54253965,1028.4,1026.8,1.30174951]
[1759369121436,0.54253965,1028.3,1026.7,1.30174951]
[1759369121642,0.87340148,1028.8,1026.7,1.30174951]
[1759369121840,0.54253212,1028.7,1026.6,1.30174951]
[1759369122140,0.54253212,1028.6,1026.6,1.30174951]
[1759369122340,0.54253212,1028.5,1026.5,1.30174951]
[1759369122636,0.54253212,1028.4,1026.5,1.30174951]
[1759369122840,0.54253212,1028.3,1026.5,1.30174951]
[1759369123040,0.16927429,1028.9,1026.5,1.30174951]
[1759369123041,0.54253212,1028.2,1026.5,1.30174951]
[1759369123238,0.16927429,1028.9,1026.5,1.30174951]
[1759369123440,0.87340148,1028.7,1026.6,1.30174951]
[1759369123738,0.5425523,1028.6,1026.6,1.30174951]
[1759369124037,0.5425523,1028.5,1026.6,1.30174951]
[1759369124239,0.5425523,1028.4,1026.6,1.30174951]
[1759369124561,0.5425523,1028.3,1026.6,1.30174951]
[1759369124738,0.5425523,1028.2,1026.6,1.30174951]
[1759369124938,0.5425523,1028.1,1026.6,1.30174951]
[1759369125244,0.54266826,1028.0,1026.6,1.30174951]
[1759369125437,0.87340148,1028.4,1026.6,1.30174951]
[1759369125642,0.54274224,1028.3,1026.6,1.30174951]
[1759369125841,0.54274224,1028.2,1026.6,1.30174951]
[1759369126142,0.54274224,1028.1,1026.6,1.30174951]
[1759369126342,0.54274224,1028.0,1026.6,1.30174951]
[1759369126539,0.87340148,1028.4,1026.6,1.30174951]
[1759369126744,0.5427731,1028.3,1026.6,1.30174951]
[1759369126939,0.5427731,1028.2,1026.6,1.30174951]
[1759369127143,0.5427731,1028.1,1026.6,1.30174951]
[1759369127342,0.5427731,1028.0,1026.6,1.30174951]
[1759369127543,0.87340148,1028.4,1026.6,1.30174951]
[1759369127743,0.54360706,1028.3,1026.6,1.30174951]
[1759369127944,0.87340148,1028.4,1026.6,1.30174951]
[1759369127945,0.54360706,1028.2,1026.6,1.30174951]
[1759369128140,0.54360706,1028.1,1026.6,1.30174951]
[1759369128345,0.54360706,1028.0,1026.6,1.30174951]
[1759369128546,0.54360706,1027.9,1026.6,1.30174951]
[1759369128742,0.87340148,1028.4,1026.6,1.30174951]
[1759369129045,0.54364433,1028.3,1026.6,1.30174951]
[1759369129240,0.54364433,1028.2,1026.6,1.30174951]
[1759369129442,0.54364433,1028.1,1026.6,1.30174951]
[1759369129642,0.54364433,1028.0,1026.6,1.30174951]
[1759369129841,0.54364433,1027.9,1026.6,1.30174951]
[1759369130046,0.87340148,1028.4,1026.6,1.30174951]
[1759369130248,0.54371261,1028.3,1026.6,1.30174951]
[1759369130447,0.54371261,1028.2,1026.6,1.30174951]
[1759369130646,0.54371261,1028.1,1026.6,1.30174951]
[1759369130944,0.54371261,1028.0,1026.5,1.30174951]
[1759369131145,0.54371261,1027.9,1026.5,1.30174951]
[1759369131441,0.87340148,1028.5,1026.5,1.30174951]
[1759369131646,0.54377457,1028.4,1026.5,1.30174951]
[1759369131845,0.54377457,1028.3,1026.5,1.30174951]
[1759369132045,0.54377457,1028.2,1026.5,1.30174951]
[1759369132240,0.54377457,1028.1,1026.5,1.30174951]
[1759369132444,0.54377457,1028.0,1026.4,1.30174951]
[1759369132645,0.54377457,1027.9,1026.4,1.30174951]
[1759369132851,0.87340148,1028.5,1026.4,1.30174951]
[1759369133046,0.54386554,1028.4,1026.4,1.30174951]
[1759369133346,0.54386554,1028.3,1026.4,1.30174951]
[1759369133541,0.54386554,1028.2,1026.4,1.30174951]
[1759369133840,0.54386554,1028.1,1026.4,1.30174951]
[1759369134068,0.54386554,1028.0,1026.4,1.30174951]
[1759369134243,0.54386554,1027.9,1026.4,1.30174951]
[1759369134441,0.87340148,1028.5,1026.4,1.30174951]
[1759369134645,0.54394907,1028.4,1026.4,1.30174951]
[1759369134944,0.54394907,1028.3,1026.4,1.30174951]
[1759369135147,0.54394907,1028.2,1026.4,1.30174951]
[1759369135342,0.54394907,1028.1,1026.5,1.30174951]
[1759369135542,0.54394907,1028.0,1026.4,1.30174951]
[1759369135743,0.54394907,1027.9,1026.4,1.30174951]
[1759369136046,0.87340148,1028.5,1026.4,1.30174951]
[1759369136246,0.54401072,1028.4,1026.3,0.16939871]
[1759369136445,0.54401072,1028.3,1026.3,0.16939871]
[1759369136644,0.54401072,1028.2,1026.3,0.16939871]
[1759369136845,0.54401072,1028.1,1026.3,0.16939871]
[1759369137046,0.54401072,1028.0,1026.3,0.16939871]
[1759369137246,0.54401072,1027.9,1026.3,0.16939871]
[1759369137447,0.87340148,1028.7,1026.3,0.16939871]
[1759369137644,0.54407919,1028.6,1026.3,0.16939871]
[1759369137944,0.54407919,1028.5,1026.3,0.16939871]
[1759369138144,0.54407919,1028.4,1026.3,0.16939871]
[1759369138347,0.54407919,1028.3,1026.3,0.16939871]
[1759369138548,0.54407919,1028.2,1026.3,0.16939871]
[1759369138844,0.54407919,1028.1,1026.3,0.16939871]
[1759369139044,0.87340148,1028.7,1026.3,0.16939871]
[1759369139045,0.54407919,1028.0,1026.3,0.16939871]
[1759369139246,0.87340148,1028.7,1026.3,0.16939871]
[1759369139247,0.54407919,1027.9,1026.3,0.16939871]
[1759369139446,0.87340148,1028.5,1026.4,1.30174951]
[1759369139747,1.41756532,1028.4,1026.6,1.30174951]
[1759369139945,0.54416384,1028.3,1026.6,1.30174951]
[1759369140150,0.54416384,1028.2,1026.5,1.30174951]
[1759369140349,0.54416384,1028.1,1026.5,1.30174951]
[1759369140547,0.54416384,1028.0,1026.5,1.30174951]
[1759369140751,0.54416384,1027.9,1026.5,1.30174951]
[1759369140948,0.87340148,1028.5,1026.5,1.30174951]
[1759369141156,0.54413563,1028.4,1026.5,1.30174951]
[1759369141448,0.54413563,1028.3,1026.5,1.30174951]
[1759369141647,0.54413563,1028.2,1026.5,1.30174951]
[1759369141852,0.54413563,1028.1,1026.5,1.30174951]
[1759369142052,0.54413563,1028.0,1026.5,1.30174951]
[1759369142253,0.54413563,1027.9,1026.6,1.30174951]
[1759369142553,0.87340148,1028.6,1026.6,1.30174951]
[1759369142750,0.54422062,1028.5,1026.6,1.30174951]
[1759369142950,0.54422062,1028.4,1026.6,1.30174951]
[1759369143148,0.54422062,1028.3,1026.6,1.30174951]
[1759369143348,0.54422062,1028.2,1026.6,1.30174951]
[1759369143553,0.54422062,1028.1,1026.6,1.30174951]
[1759369143749,0.54422062,1028.0,1026.6,1.30174951]
[1759369144048,0.87340148,1028.6,1026.6,1.30174951]
[1759369144247,0.54430826,1028.5,1026.6,1.30174951]
[1759369144451,0.54430826,1028.4,1026.6,1.30174951]
[1759369144650,0.54430826,1028.3,1026.6,1.30174951]
[1759369144847,0.87340148,1028.6,1026.6,1.30174951]
[1759369144848,0.54430826,1028.2,1026.6,1.30174951]
[1759369145047,0.54430826,1028.1,1026.6,1.30174951]
[1759369145272,0.54430826,1028.1,1026.3,0.16939871]
[1759369145273,0.54430826,1028.0,1026.7,1.30174951]
[1759369145549,0.87340148,1028.6,1026.7,1.30174951]
[1759369145849,0.54443217,1028.5,1026.7,1.30174951]
[1759369146148,0.54443217,1028.4,1026.8,1.30174951]
[1759369146347,0.87340148,1028.6,1026.8,1.30174951]
[1759369146348,0.54443217,1028.3,1026.8,1.30174951]
[1759369146549,0.54443217,1028.2,1026.8,1.30174951]
[1759369146747,0.54443217,1028.1,1026.8,1.30174951]
[1759369146950,0.87340148,1028.6,1026.8,1.30174951]
[1759369147149,0.54449,1028.5,1026.8,1.30174951]
[1759369147451,0.54449,1028.4,1026.8,1.30174951]
[1759369147650,0.54449,1028.3,1026.8,1.30174951]
[1759369147849,0.54449,1028.2,1026.8,1.30174951]
[1759369148051,0.54449,1028.1,1026.8,1.30174951]
[1759369148250,0.54449,1028.0,1026.9,1.30174951]
[1759369148454,0.87340148,1028.5,1026.9,1.30174951]
[1759369148654,0.54467256,1028.4,1026.9,1.30174951]
[1759369148852,0.54467256,1028.3,1026.9,1.30174951]
[1759369149055,0.54467256,1028.2,1026.9,1.30174951]
[1759369149252,0.54467256,1028.1,1026.9,1.30174951]
[1759369149552,0.54467256,1028.0,1026.9,1.30174951]
[1759369149852,0.87340148,1028.5,1026.9,1.30174951]
[1759369150057,0.54477737,1028.4,1026.9,1.30174951]
[1759369150257,0.54477737,1028.3,1026.9,1.30174951]
[1759369150456,0.87340148,1028.5,1026.9,1.30174951]
[1759369150457,0.54477737,1028.2,1026.9,1.30174951]
[1759369150654,0.87340148,1028.5,1026.9,1.30174951]
[1759369150655,0.54477737,1028.1,1026.9,1.30174951]
[1759369150854,0.87340148,1028.5,1026.9,1.30174951]
[1759369150855,0.54477737,1028.0,1026.9,1.30174951]
[1759369151057,0.87340148,1028.5,1026.9,1.30174951]
[1759369151258,0.54501403,1028.4,1026.9,1.30174951]
[1759369151456,0.54501403,1028.3,1026.9,1.30174951]
[1759369151658,0.54501403,1028.2,1026.9,1.30174951]
[1759369151858,0.54501403,1028.1,1026.9,1.30174951]
[1759369152056,0.54501403,1028.0,1026.9,1.30174951]
[1759369152259,0.87340148,1028.5,1026.9,1.30174951]
[1759369152457,1.41854044,1028.4,1026.9,1.30174951]
[1759369152657,0.54513896,1028.3,1026.9,1.30174951]
[1759369152860,0.54513896,1028.2,1026.9,1.30174951]
[1759369153160,0.54513896,1028.1,1026.9,1.30174951]
[1759369153460,0.54513896,1028.0,1026.9,1.30174951]
[1759369153660,0.87340148,1028.5,1026.9,1.30174951]
[1759369153862,1.41858442,1028.4,1026.9,1.30174951]
[1759369154162,0.54518294,1028.3,1026.9,1.30174951]
[1759369154361,0.54518294,1028.2,1026.9,1.30174951]
[1759369154558,0.54518294,1028.1,1026.9,1.30174951]
[1759369154760,0.54518294,1028.0,1026.9,1.30174951]
[1759369154958,0.87340148,1028.5,1026.9,1.30174951]
[1759369155156,0.54521581,1028.4,1026.9,1.30174951]
[1759369155356,0.54521581,1028.3,1026.9,1.30174951]
[1759369155661,0.54521581,1028.2,1026.9,1.30174951]
[1759369155857,0.54521581,1028.1,1026.8,1.30174951]
[1759369156057,0.54521581,1028.0,1026.9,1.30174951]
[1759369156263,0.87340148,1028.5,1026.9,1.30174951]
[1759369156463,0.54521722,1028.4,1026.9,1.30174951]
[1759369156661,0.54521722,1028.3,1026.8,1.30174951]
[1759369156959,0.54521722,1028.3,1026.3,0.16939871]
[1759369156960,0.54521722,1028.2,1026.6,1.30174951]
[1759369157160,0.54521722,1028.1,1026.6,1.30174951]
[1759369157365,0.54521722,1028.0,1026.6,1.30174951]
[1759369157562,0.87340148,1028.7,1026.6,1.30174951]
[1759369157901,0.54266613,1028.6,1026.7,1.30174951]
[1759369158064,1.41606761,1028.5,1026.9,1.30174951]
[1759369158260,0.54266613,1028.4,1026.9,1.30174951]
[1759369158461,0.54266613,1028.3,1027.0,1.30174951]
[1759369158664,0.16927429,1028.9,1027.1,1.30174951]
[1759369158665,0.54266613,1028.2,1027.1,1.30174951]
[1759369158863,0.54266613,1028.1,1027.1,1.30174951]
[1759369159065,0.87340148,1028.8,1026.8,1.30174951]
[1759369159266,0.54259369,1028.7,1026.8,1.30174951]
[1759369159462,0.54259369,1028.6,1026.8,1.30174951]
[1759369159662,0.54259369,1028.5,1026.8,1.30174951]
[1759369159965,0.54259369,1028.4,1026.8,1.30174951]
[1759369160163,0.54259369,1028.3,1026.7,1.30174951]
[1759369160361,0.54259369,1028.2,1026.7,1.30174951]
[1759369160565,0.54259369,1028.1,1026.7,1.30174951]
[1759369160865,1.04267577,1028.9,1026.7,1.30174951]
[1759369161066,0.54256254,1028.8,1026.7,1.30174951]
[1759369161266,0.54256254,1028.7,1026.7,1.30174951]
[1759369161561,0.54256254,1028.6,1026.7,1.30174951]
[1759369161762,0.54256254,1028.5,1026.7,1.30174951]
[1759369161965,0.54256254,1028.4,1026.7,1.30174951]
[1759369162165,0.54256254,1028.3,1026.7,1.30174951]
[1759369162364,0.54256254,1028.2,1026.7,1.30174951]
[1759369162563,0.54256254,1028.1,1026.7,1.30174951]
[1759369162763,1.04267577,1028.9,1026.7,1.30174951]
[1759369162963,0.54254333,1028.8,1026.7,1.30174951]
[1759369163167,0.54254333,1028.7,1026.7,1.30174951]
[1759369163367,0.54254333,1028.6,1026.7,1.30174951]
[1759369163663,0.54254333,1028.5,1026.7,1.30174951]
[1759369163864,0.54254333,1028.4,1026.7,1.30174951]
[1759369164063,0.54254333,1028.3,1026.7,1.30174951]
[1759369164264,0.54254333,1028.2,1026.7,1.30174951]
[1759369164467,0.54254333,1028.1,1026.7,1.30174951]
[1759369164664,1.04267577,1028.9,1026.7,1.30174951]
[1759369164865,0.54254638,1028.8,1026.7,1.30174951]
[1759369165068,0.54254638,1028.7,1026.7,1.30174951]
[1759369165365,0.54254638,1028.6,1026.7,1.30174951]
[1759369165569,0.54254638,1028.5,1026.7,1.30174951]
[1759369165764,0.54254638,1028.4,1027.0,1.30174951]
[1759369165967,0.54254638,1028.3,1027.0,1.30174951]
[1759369166195,0.54254638,1028.2,1027.0,1.30174951]
[1759369166471,0.54254638,1028.1,1027.0,1.30174951]
[1759369166671,0.87340148,1028.7,1027.0,1.30174951]
[1759369166870,0.54255881,1028.6,1026.9,1.30174951]
[1759369167070,0.54255881,1028.5,1026.9,1.30174951]
[1759369167267,0.54255881,1028.4,1026.9,1.30174951]
[1759369167570,0.54255881,1028.3,1026.9,1.30174951]
[1759369167873,0.54255881,1028.2,1026.9,1.30174951]
[1759369168066,0.54255881,1028.1,1026.9,1.30174951]
[1759369168370,0.87340148,1028.7,1026.9,1.30174951]
[1759369168568,0.54260169,1028.6,1026.9,1.30174951]
[1759369168767,0.54260169,1028.5,1026.9,1.30174951]
[1759369168970,0.54260169,1028.4,1026.9,1.30174951]
[1759369169168,0.54260169,1028.3,1026.9,1.30174951]
[1759369169371,0.54260169,1028.2,1026.9,1.30174951]
[1759369169572,0.54260169,1028.1,1026.9,1.30174951]
[1759369169772,0.87340148,1028.7,1026.9,1.30174951]
[1759369169972,0.54262442,1028.6,1026.9,1.30174951]
[1759369170172,0.54262442,1028.5,1026.9,1.30174951]
[1759369170368,0.54262442,1028.4,1026.9,1.30174951]
[1759369170668,0.54262442,1028.3,1026.9,1.30174951]
[1759369170871,0.54262442,1028.2,1026.9,1.30174951]
[1759369171071,0.54262442,1028.1,1026.9,1.30174951]
[1759369171276,0.87340148,1028.7,1026.9,1.30174951]
[1759369171469,0.5426727,1028.6,1026.9,1.30174951]
[1759369171669,0.5426727,1028.5,1026.8,1.30174951]
[1759369171873,0.5426727,1028.4,1026.8,1.30174951]
[1759369172071,0.5426727,1028.3,1026.8,1.30174951]
[1759369172403,0.5426727,1028.2,1026.8,1.30174951]
[1759369172574,0.5426727,1028.1,1026.8,1.30174951]
[1759369172875,0.87340148,1028.8,1026.8,1.30174951]
[1759369173072,0.54270072,1028.7,1026.8,1.30174951]
[1759369173270,0.54270072,1028.6,1026.8,1.30174951]
[1759369173471,0.54270072,1028.5,1026.8,1.30174951]
[1759369173674,0.54270072,1028.4,1026.8,1.30174951]
[1759369173970,0.54270072,1028.3,1026.8,1.30174951]
[1759369174170,0.54270072,1028.2,1026.8,1.30174951]
[1759369174375,0.54270072,1028.1,1026.8,1.30174951]
[1759369174671,0.87340148,1028.8,1026.8,1.30174951]
[1759369174870,0.54272167,1028.7,1026.8,1.30174951]
[1759369175074,0.87340148,1028.8,1026.8,1.30174951]
[1759369175075,0.54272167,1028.6,1026.8,1.30174951]
[1759369175272,0.54272167,1028.5,1026.8,1.30174951]
[1759369175476,0.54272167,1028.4,1026.8,1.30174951]
[1759369175676,0.54272167,1028.3,1026.8,1.30174951]
[1759369175874,0.54272167,1028.2,1026.8,1.30174951]
[1759369176078,0.54272167,1028.1,1026.8,1.30174951]
[1759369176278,0.87340148,1028.8,1026.8,1.30174951]
[1759369176479,0.54273451,1028.7,1026.8,1.30174951]
[1759369176679,0.54273451,1028.6,1026.8,1.30174951]
[1759369176880,0.54273451,1028.6,1026.3,0.16939871]
[1759369176881,0.54273451,1028.5,1026.9,1.30174951]
[1759369177181,0.54273451,1028.4,1026.9,1.30174951]
[1759369177380,0.54273451,1028.3,1026.9,1.30174951]
[1759369177580,0.54273451,1028.2,1026.9,1.30174951]
[1759369177880,0.87340148,1028.8,1026.9,1.30174951]